fUSD/lending_fUSD_20250515
["ID","MTS","AMOUNT","RATE_DAILY","PERIOD"]
[361137208,1747301334695,-400.0,0.0001165,2]
[361137209,1747301334721,-400.0,0.0001165,2]
[361137210,1747301334747,-547.14,0.0001165,2]
[361137211,1747301334772,-400.0,0.0001165,2]
[361137212,1747301334798,-400.0,0.0001165,2]
[361137213,1747301334824,-400.0,0.0001165,2]
[361137214,1747301334849,-400.0,0.0001165,2]
[361137215,1747301334874,-400.0,0.0001165,2]
[361137216,1747301334898,-293.49614002,0.0001165,2]
[361137217,1747301334923,-1763.95,0.0001165,2]
[361137218,1747301334947,-400.0,0.0001165,2]
[361137219,1747301334972,-400.0,0.0001165,2]
[361137220,1747301334998,-400.0,0.0001165,2]
[361137221,1747301335022,-411.50315667,0.0001165,2]
[361137222,1747301335047,-400.0,0.0001165,2]
[361137223,1747301335072,-422.90390154,0.0001165,2]
[361137224,1747301335096,-400.0,0.0001165,2]
[361137225,1747301335121,-1455.99,0.0001165,2]
[361137226,1747301335147,-405.42975621,0.0001165,2]
[361137227,1747301335171,-400.0,0.0001165,2]
[361137228,1747301335195,-400.0,0.0001165,2]
[361137229,1747301335220,-400.0,0.0001165,2]
[361137230,1747301335261,-400.0,0.0001165,2]
[361137231,1747301335291,-592.4,0.0001165,2]
[361137232,1747301335318,-400.0,0.0001165,2]
[361137233,1747301335345,-461.56,0.0001165,2]
[361137234,1747301335372,-400.0,0.0001165,2]
[361137235,1747301335398,-400.0,0.0001165,2]
[361137236,1747301335424,-400.0,0.0001165,2]
[361137237,1747301335450,-405.70587187,0.0001165,2]
[361137238,1747301335477,-400.0,0.0001165,2]
[361137239,1747301335505,-307.61,0.0001165,2]
[361137240,1747301335532,-400.0,0.0001165,2]
[361137241,1747301335560,-400.0,0.0001165,2]
[361137242,1747301335586,-1214.4,0.0001165,2]
[361137243,1747301335613,-259.525349,0.0001165,2]
[361137244,1747301335639,-748.32,0.0001165,2]
[361137245,1747301335667,-400.0,0.0001165,2]
[361137246,1747301335694,-400.0,0.0001165,2]
[361137247,1747301335719,-411.19704997,0.0001165,2]
[361137248,1747301335749,-400.0,0.0001165,2]
[361137249,1747301335781,-400.0,0.0001165,2]
[361137250,1747301335807,-432.22079656,0.0001165,2]
[361137251,1747301335836,-1224.43,0.0001165,2]
[361137252,1747301335863,-400.0,0.0001165,2]
[361137253,1747301335889,-452.39400567,0.0001165,2]
[361137254,1747301335918,-1051.7,0.0001165,2]
[361137255,1747301335945,-400.0,0.0001165,2]
[361137256,1747301335971,-872.62,0.0001165,2]
[361137257,1747301335999,-400.0,0.0001165,2]
[361137258,1747301336025,-400.0,0.0001165,2]
[361137259,1747301336051,-400.0,0.0001165,2]
[361137260,1747301336077,-400.0,0.0001165,2]
[361137261,1747301336107,-409.42309698,0.0001165,2]
[361137262,1747301336134,-5275.4,0.0001165,2]
[361137263,1747301336160,-407.69456405,0.0001165,2]
[361137264,1747301336186,-400.0,0.0001165,2]
[361137265,1747301336212,-400.0,0.0001165,2]
[361137266,1747301336237,-325.04242324,0.0001165,2]
[361137267,1747301336263,-465.34,0.0001165,2]
[361137268,1747301336290,-4877.27,0.0001165,2]
[361137269,1747301336316,-404.43155501,0.0001165,2]
[361137270,1747301336343,-404.88660034,0.0001165,2]
[361137271,1747301336369,-1706.2,0.0001165,2]
[361137272,1747301336395,-418.62564179,0.0001165,2]
[361137273,1747301336421,-400.0,0.0001165,2]
[361137274,1747301336448,-2312.8,0.0001165,2]
[361137275,1747301336474,-313.38565912,0.0001165,2]
[361137276,1747301336500,-400.0,0.0001165,2]
[361137277,1747301336526,-400.0,0.0001165,2]
[361137278,1747301336551,-400.0,0.0001165,2]
[361137279,1747301336577,-366.04259433,0.0001165,2]
[361137280,1747301336603,-400.0,0.0001165,2]
[361137282,1747301336629,-622.37,0.0001165,2]
[361137283,1747301336655,-423.79425235,0.0001165,2]
[361137284,1747301336681,-3012.47,0.0001165,2]
[361137285,1747301336710,-400.0,0.0001165,2]
[361137286,1747301336735,-400.0,0.0001165,2]
[361137287,1747301336761,-400.0,0.0001165,2]
[361137288,1747301336785,-400.0,0.0001165,2]
[361137289,1747301336810,-664.97,0.0001165,2]
[361137290,1747301336835,-400.0,0.0001165,2]
[361137291,1747301336859,-400.0,0.0001165,2]
[361137292,1747301336883,-400.0,0.0001165,2]
[361137293,1747301336909,-400.0,0.0001165,2]
[361137294,1747301336932,-405.28407635,0.0001165,2]
[361137295,1747301336955,-400.0,0.0001165,2]
[361137296,1747301336978,-400.0,0.0001165,2]
[361137297,1747301337002,-400.0,0.0001165,2]
[361137298,1747301337025,-424.36,0.0001165,2]
[361137299,1747301337049,-2181.81,0.0001165,2]
[361137300,1747301337075,-400.0,0.0001165,2]
[361137301,1747301337100,-400.0,0.0001165,2]
[361137302,1747301337125,-400.0,0.0001165,2]
[361137303,1747301337150,-400.0,0.0001165,2]
[361137304,1747301337175,-400.0,0.0001165,2]
[361137305,1747301337199,-400.0,0.0001165,2]
[361137306,1747301337226,-4919.33,0.0001165,2]
[361137307,1747301337251,-400.0,0.0001165,2]
[361137308,1747301337275,-400.0,0.0001165,2]
[361137309,1747301337299,-403.21448653,0.0001165,2]
[361137310,1747301337323,-400.0,0.0001165,2]
[361137311,1747301337348,-400.0,0.0001165,2]
[361137312,1747301337373,-400.0,0.0001165,2]
[361137313,1747301337398,-13543.41,0.0001165,2]
[361137314,1747301337422,-400.0,0.0001165,2]
[361137315,1747301337683,-400.0,0.0001165,2]
[361137316,1747301337708,-696.51,0.0001165,2]
[361137317,1747301337732,-401.46207184,0.0001165,2]
[361137318,1747301337759,-400.0,0.0001165,2]
[361137319,1747301337783,-402.00001344,0.0001165,2]
[361137320,1747301337809,-4550.65,0.0001165,2]
[361137321,1747301337835,-402.88684799,0.0001165,2]
[361137322,1747301337859,-400.0,0.0001165,2]
[361137323,1747301337884,-400.0,0.0001165,2]
[361137324,1747301337910,-754.53,0.0001165,2]
[361137325,1747301337935,-400.0,0.0001165,2]
[361137326,1747301337960,-6945.29,0.0001165,2]
[361137327,1747301337984,-300.0,0.00011655,2]
[361137328,1747301338009,-538.66025019,0.00011655,2]
[361137329,1747301338033,-500.0,0.00011655,2]
[361137330,1747301338059,-1262.3,0.00011655,2]
[361137331,1747301338083,-151.0,0.00011656,2]
[361137332,1747301338106,-151.0,0.00011656,2]
[361137333,1747301338130,-151.0,0.00011656,2]
[361137334,1747301338154,-151.0,0.00011656,2]
[361137335,1747301338179,-243.960484,0.00011656,2]
[361137336,1747301338202,-151.0,0.00011656,2]
[361137337,1747301338226,-215.202106,0.00011656,2]
[361137338,1747301338252,-215.202106,0.00011656,2]
[361137339,1747301338276,-151.0,0.00011656,2]
[361137340,1747301338300,-164.574446,0.00011656,2]
[361137341,1747301338325,-883.01165,0.00011656,2]
[361137342,1747301338349,-883.01165,0.00011656,2]
[361137343,1747301338373,-151.0,0.00011656,2]
[361137344,1747301338398,-400.0,0.00011656,2]
[361137345,1747301338423,-400.0,0.00011656,2]
[361137346,1747301338446,-301.18071715,0.00011656,2]
[361137347,1747301338470,-151.0,0.00011656,2]
[361137348,1747301338496,-151.0,0.00011656,2]
[361137349,1747301338520,-400.0,0.00011656,2]
[361137350,1747301338545,-400.0,0.00011656,2]
[361137351,1747301338570,-400.0,0.00011656,2]
[361137352,1747301338595,-465.42,0.00011656,2]
[361137353,1747301338619,-400.0,0.00011656,2]
[361137354,1747301338644,-632.2,0.00011656,2]
[361137355,1747301338669,-407.62,0.00011656,2]
[361137356,1747301338694,-385.83238184,0.00011656,2]
[361137357,1747301338718,-400.0,0.00011656,2]
[361137358,1747301338745,-342.57829568,0.00011656,2]
[361137359,1747301338770,-400.0,0.00011656,2]
[361137360,1747301338795,-400.0,0.00011656,2]
[361137361,1747301338820,-400.0,0.00011656,2]
[361137362,1747301338845,-400.0,0.00011656,2]
[361137363,1747301338869,-286.51832005,0.00011656,2]
[361137364,1747301338893,-400.0,0.00011656,2]
[361137365,1747301338918,-447.37324837,0.00011656,2]
[361137366,1747301338942,-400.0,0.00011656,2]
[361137367,1747301338967,-400.0,0.00011656,2]
[361137368,1747301338991,-400.0,0.00011656,2]
[361137369,1747301339015,-400.0,0.00011656,2]
[361137370,1747301339040,-400.0,0.00011656,2]
[361137371,1747301339065,-400.0,0.00011656,2]
[361137372,1747301339090,-151.0,0.00011656,2]
[361137373,1747301339114,-400.0,0.00011656,2]
[361137374,1747301339138,-400.0,0.00011656,2]
[361137375,1747301339161,-405.03121001,0.00011656,2]
[361137376,1747301339185,-400.0,0.00011656,2]
[361137377,1747301339208,-151.0,0.00011656,2]
[361137378,1747301339232,-400.0,0.00011656,2]
[361137379,1747301339256,-151.0,0.00011656,2]
[361137380,1747301339280,-400.0,0.00011656,2]
[361137381,1747301339303,-557.88,0.00011656,2]
[361137382,1747301339327,-151.0,0.00011656,2]
[361137383,1747301339351,-151.0,0.00011656,2]
[361137384,1747301339375,-400.0,0.00011656,2]
[361137385,1747301339400,-400.0,0.00011656,2]
[361137386,1747301339424,-400.0,0.00011656,2]
[361137387,1747301339448,-400.0,0.00011656,2]
[361137388,1747301339473,-400.0,0.00011656,2]
[361137389,1747301339498,-302.0,0.00011656,2]
[361137390,1747301339523,-999.09,0.00011656,2]
[361137391,1747301339547,-400.0,0.00011656,2]
[361137392,1747301339573,-400.0,0.00011656,2]
[361137393,1747301339597,-400.0,0.00011656,2]
[361137394,1747301339621,-400.0,0.00011656,2]
[361137395,1747301339645,-400.0,0.00011656,2]
[361137396,1747301339671,-400.0,0.00011656,2]
[361137397,1747301339695,-400.0,0.00011656,2]
[361137398,1747301339719,-511.74,0.00011656,2]
[361137399,1747301339744,-400.0,0.00011656,2]
[361137400,1747301339768,-400.0,0.00011656,2]
[361137401,1747301339793,-400.0,0.00011656,2]
[361137402,1747301339818,-400.0,0.00011656,2]
[361137403,1747301339842,-450.0,0.00011656,2]
[361137404,1747301339866,-400.0,0.00011656,2]
[361137405,1747301339889,-402.80956046,0.00011656,2]
[361137406,1747301339914,-403.1105143,0.00011656,2]
[361137407,1747301339938,-400.0,0.00011656,2]
[361137408,1747301339962,-400.0,0.00011656,2]
[361137409,1747301339986,-400.0,0.00011656,2]
[361137410,1747301340011,-400.0,0.00011656,2]
[361137411,1747301340035,-400.0,0.00011656,2]
[361137412,1747301340060,-557.81,0.00011656,2]
[361137413,1747301340085,-400.0,0.00011656,2]
[361137414,1747301340110,-178.63197574,0.00011656,2]
[361137415,1747301340135,-151.0,0.00011656,2]
[361137416,1747301340159,-448.68423649,0.00011656,2]
[361137417,1747301340183,-151.0,0.00011656,2]
[361137418,1747301340206,-400.0,0.00011656,2]
[361137419,1747301340230,-400.0,0.00011656,2]
[361137420,1747301340254,-400.0,0.00011656,2]
[361137421,1747301340278,-400.0,0.00011656,2]
[361137422,1747301340302,-400.0,0.00011656,2]
[361137423,1747301340328,-400.0,0.00011656,2]
[361137424,1747301340352,-400.0,0.00011656,2]
[361137425,1747301340377,-400.0,0.00011656,2]
[361137426,1747301340401,-410.0647983,0.00011656,2]
[361137427,1747301340425,-400.0,0.00011656,2]
[361137428,1747301340449,-400.0,0.00011656,2]
[361137429,1747301340474,-400.0,0.00011656,2]
[361137430,1747301340500,-331.65608304,0.00011656,2]
[361137431,1747301340707,-419.36580932,0.00011656,2]
[361137432,1747301340731,-404.23989366,0.00011656,2]
[361137433,1747301340758,-292.78088434,0.00011656,2]
[361137434,1747301340783,-410.25666859,0.00011656,2]
[361137435,1747301340807,-400.0,0.00011656,2]
[361137436,1747301340836,-400.0,0.00011656,2]
[361137437,1747301340861,-400.0,0.00011656,2]
[361137438,1747301340886,-305.00557626,0.00011656,2]
[361137439,1747301340911,-400.0,0.00011656,2]
[361137440,1747301340935,-400.0,0.00011656,2]
[361137441,1747301340959,-400.0,0.00011656,2]
[361137442,1747301340983,-213.15793593,0.00011656,2]
[361137443,1747301341007,-400.0,0.00011656,2]
[361137444,1747301341033,-400.0,0.00011656,2]
[361137445,1747301341057,-400.0,0.00011656,2]
[361137446,1747301341081,-400.0,0.00011656,2]
[361137447,1747301341105,-400.0,0.00011656,2]
[361137448,1747301341129,-1086.64,0.00011656,2]
[361137449,1747301341154,-400.0,0.00011656,2]
[361137450,1747301341181,-400.0,0.00011656,2]
[361137451,1747301341206,-400.0,0.00011656,2]
[361137452,1747301341230,-400.0,0.00011656,2]
[361137453,1747301341256,-400.0,0.00011656,2]
[361137454,1747301341280,-400.0,0.00011656,2]
[361137455,1747301341304,-400.0,0.00011656,2]
[361137456,1747301341328,-401.50680637,0.00011656,2]
[361137457,1747301341352,-400.0,0.00011656,2]
[361137458,1747301341377,-400.0,0.00011656,2]
[361137459,1747301341402,-151.0,0.00011656,2]
[361137460,1747301341426,-151.0,0.00011656,2]
[361137461,1747301341450,-400.0,0.00011656,2]
[361137462,1747301341475,-400.0,0.00011656,2]
[361137463,1747301341501,-400.0,0.00011656,2]
[361137464,1747301341525,-400.0,0.00011656,2]
[361137465,1747301341549,-400.0,0.00011656,2]
[361137466,1747301341573,-400.0,0.00011656,2]
[361137467,1747301341598,-400.0,0.00011656,2]
[361137468,1747301341622,-400.0,0.00011656,2]
[361137469,1747301341649,-400.0,0.00011656,2]
[361137470,1747301341675,-400.0,0.00011656,2]
[361137471,1747301341699,-400.0,0.00011656,2]
[361137472,1747301341724,-400.0,0.00011656,2]
[361137473,1747301341752,-542.04,0.00011656,2]
[361137474,1747301341776,-400.0,0.00011656,2]
[361137475,1747301341801,-400.0,0.00011656,2]
[361137476,1747301341828,-400.0,0.00011656,2]
[361137477,1747301341853,-400.0,0.00011656,2]
[361137478,1747301341881,-400.0,0.00011656,2]
[361137479,1747301341910,-400.0,0.00011656,2]
[361137480,1747301341934,-400.0,0.00011656,2]
[361137481,1747301341958,-400.0,0.00011656,2]
[361137482,1747301341983,-400.0,0.00011656,2]
[361137483,1747301342011,-400.0,0.00011656,2]
[361137484,1747301342036,-753.91,0.00011656,2]
[361137485,1747301342061,-400.0,0.00011656,2]
[361137486,1747301342086,-400.0,0.00011656,2]
[361137487,1747301342111,-552.67,0.00011656,2]
[361137488,1747301342135,-400.0,0.00011656,2]
[361137489,1747301342160,-936.08,0.00011656,2]
[361137490,1747301342184,-400.0,0.00011656,2]
[361137491,1747301342209,-400.0,0.00011656,2]
[361137492,1747301342233,-400.0,0.00011656,2]
[361137493,1747301342259,-724.95,0.00011656,2]
[361137494,1747301342284,-400.0,0.00011656,2]
[361137495,1747301342309,-400.0,0.00011656,2]
[361137496,1747301342335,-400.0,0.00011656,2]
[361137497,1747301342361,-400.0,0.00011656,2]
[361137498,1747301342386,-373.22566734,0.00011656,2]
[361137499,1747301342411,-500.0,0.00011656,2]
[361137500,1747301342436,-500.0,0.00011656,2]
[361137501,1747301342461,-508.62310322,0.00011656,2]
[361137502,1747301342486,-151.0,0.00011657,2]
[361137503,1747301342511,-161.011857,0.00011657,2]
[361137504,1747301342536,-151.0,0.00011657,2]
[361137505,1747301342560,-151.0,0.00011657,2]
[361137506,1747301342586,-151.0,0.00011657,2]
[361137507,1747301342612,-243.960484,0.00011657,2]
[361137508,1747301342638,-151.0,0.00011657,2]
[361137509,1747301342665,-243.960484,0.00011657,2]
[361137510,1747301342690,-151.0,0.00011657,2]
[361137511,1747301342715,-215.202106,0.00011657,2]
[361137512,1747301342741,-215.202106,0.00011657,2]
[361137513,1747301342765,-151.0,0.00011657,2]
[361137514,1747301342790,-883.01165,0.00011657,2]
[361137515,1747301342815,-883.01165,0.00011657,2]
[361137516,1747301342839,-151.0,0.00011657,2]
[361137517,1747301342864,-151.0,0.00011657,2]
[361137518,1747301342888,-151.0,0.00011657,2]
[361137519,1747301342914,-265.663706,0.00011657,2]
[361137520,1747301342937,-2470.556945,0.00011657,2]
[361137521,1747301342962,-151.0,0.00011657,2]
[361137522,1747301342987,-2470.556945,0.00011657,2]
[361137523,1747301343011,-151.0,0.00011657,2]
[361137524,1747301343035,-2470.556945,0.00011657,2]
[361137525,1747301343059,-2470.556945,0.00011657,2]
[361137526,1747301343083,-151.0,0.00011657,2]
[361137527,1747301343108,-151.0,0.00011657,2]
[361137528,1747301343132,-151.0,0.00011658,2]
[361137529,1747301343156,-151.0,0.00011658,2]
[361137530,1747301343181,-151.0,0.00011658,2]
[361137531,1747301343206,-151.0,0.00011658,2]
[361137532,1747301343230,-151.0,0.00011658,2]
[361137533,1747301343256,-151.0,0.00011658,2]
[361137534,1747301343281,-151.0,0.00011658,2]
[361137535,1747301343312,-151.0,0.00011658,2]
[361137536,1747301343343,-151.0,0.00011658,2]
[361137537,1747301343371,-243.960484,0.00011658,2]
[361137538,1747301343401,-243.960484,0.00011658,2]
[361137539,1747301343432,-151.0,0.00011658,2]
[361137540,1747301343463,-151.0,0.00011658,2]
[361137541,1747301343495,-243.960484,0.00011658,2]
[361137542,1747301343525,-243.960484,0.00011658,2]
[361137543,1747301343556,-151.0,0.00011658,2]
[361137544,1747301343585,-151.0,0.00011658,2]
[361137545,1747301343615,-215.202106,0.00011658,2]
[361137546,1747301343826,-215.202106,0.00011658,2]
[361137547,1747301343857,-215.202106,0.00011658,2]
[361137548,1747301343886,-215.202106,0.00011658,2]
[361137549,1747301343914,-151.0,0.00011658,2]
[361137550,1747301343943,-151.0,0.00011658,2]
[361137551,1747301343972,-883.01165,0.00011658,2]
[361137552,1747301344002,-883.01165,0.00011658,2]
[361137553,1747301344031,-151.0,0.00011658,2]
[361137554,1747301344060,-2470.556945,0.00011658,2]
[361137555,1747301344088,-151.0,0.00011658,2]
[361137556,1747301344117,-2470.556945,0.00011658,2]
[361137557,1747301344146,-182.775754,0.00011658,2]
[361137558,1747301344173,-300.24,0.00011659,2]
[361137559,1747301344202,-400.0,0.00011661,2]
[361137560,1747301344231,-150.0,0.00011662,2]
[361137561,1747301344262,-180.04364922,0.00011662,2]
[361137562,1747301344291,-150.0,0.00011662,2]
[361137563,1747301344321,-150.0,0.00011662,2]
[361137564,1747301344352,-192.94464691,0.00011662,2]
[361137565,1747301344382,-1917.69774999,0.00011662,2]
[361137566,1747301344412,-1374.10384309,0.00011662,2]
[361137567,1747301344440,-1789.0042617,0.00011662,2]
[361137568,1747301344471,-500.0,0.00011671,2]
[361137569,1747301344500,-552.0,0.00011671,2]
[361137570,1747301344531,-574.0,0.00011671,2]
[361137571,1747301344564,-500.0,0.00011671,2]
[361137572,1747301344594,-507.07667291,0.00011673,2]
[361137573,1747301344625,-500.0,0.00011673,2]
[361137574,1747301344657,-883.01165,0.00011689,2]
[361137575,1747301344688,-883.01165,0.00011689,2]
[361137576,1747301344718,-151.0,0.00011689,2]
[361137577,1747301344748,-500.0,0.00011699,2]
[361137578,1747301344777,-552.0,0.00011699,2]
[361137579,1747301344807,-574.0,0.00011699,2]
[361137580,1747301344842,-500.0,0.00011699,2]
[361137581,1747301344874,-500.0,0.00011699,2]
[361137582,1747301344904,-910.7,0.000117,2]
[361137583,1747301344933,-364.28,0.000117,2]
[361137584,1747301344963,-212.2,0.000117,2]
[361137585,1747301344993,-297.24,0.000117,2]
[361137586,1747301345021,-1000.0,0.000117,2]
[361137587,1747301345050,-170.0,0.000117,2]
[361137588,1747301345078,-170.0,0.000117,2]
[361137589,1747301345105,-170.0,0.000117,2]
[361137590,1747301345133,-170.0,0.000117,2]
[361137591,1747301345161,-1880.0,0.000117,2]
[361137592,1747301345190,-8300.0,0.000117,4]
[361137593,1747301345218,-1000.0,0.00011717,2]
[361137594,1747301345247,-7821.4725584,0.0001172,2]
[361137595,1747301345274,-500.0,0.00011726,2]
[361137596,1747301345301,-552.0,0.00011726,2]
[361137597,1747301345329,-574.0,0.00011726,2]
[361137598,1747301345357,-500.0,0.00011726,2]
[361137599,1747301345387,-336.96,0.00011726,2]
[361137600,1747301345416,-500.0,0.00011754,2]
[361137601,1747301345446,-552.0,0.00011754,2]
[361137602,1747301345475,-574.0,0.00011754,2]
[361137603,1747301345508,-519.00971366,0.00011754,2]
[361137604,1747301345538,-16021.7791148,0.00011763,2]
[361137605,1747301345569,-806.45118563,0.00011769,2]
[361137606,1747301345598,-500.0,0.00011781,2]
[361137607,1747301345628,-552.0,0.00011781,2]
[361137608,1747301345659,-574.0,0.00011781,2]
[361137609,1747301345689,-151.0,0.00011799,2]
[361137610,1747301345719,-1262.3,0.00011799,2]
[361137611,1747301345749,-1000.0,0.000118,2]
[361137612,1747301345778,-151.0,0.000118,2]
[361137613,1747301345808,-182.544407,0.000118,2]
[361137614,1747301345840,-151.0,0.000118,2]
[361137615,1747301345868,-243.960484,0.000118,2]
[361137616,1747301345896,-151.0,0.000118,2]
[361137617,1747301345926,-243.960484,0.000118,2]
[361137618,1747301345955,-151.0,0.000118,2]
[361137619,1747301345983,-215.202106,0.000118,2]
[361137620,1747301346012,-215.202106,0.000118,2]
[361137621,1747301346040,-192.848977,0.000118,2]
[361137622,1747301346069,-1000.0,0.000118,2]
[361137623,1747301346098,-11100.0,0.000118,4]
[361137624,1747301346126,-506.76468884,0.00011808,2]
[361137625,1747301346154,-552.0,0.00011808,2]
[361137626,1747301346184,-574.0,0.00011808,2]
[361137627,1747301346212,-152.30675,0.00011826,2]
[361137628,1747301346242,-394.72096496,0.0001183,2]
[361137629,1747301346270,-552.0,0.00011836,2]
[361137630,1747301346299,-574.0,0.00011836,2]
[361137631,1747301346327,-552.0,0.00011863,2]
[361137632,1747301346356,-574.0,0.00011863,2]
[361137633,1747301346386,-7821.4725584,0.00011872,2]
[361137634,1747301346417,-185.920016,0.00011873,2]
[361137635,1747301346447,-552.0,0.00011891,2]
[361137636,1747301346477,-574.0,0.00011891,2]
[361137637,1747301346509,-1000.0,0.000119,2]
[361137638,1747301346539,-3019.7,0.000119,2]
[361137639,1747301346570,-2470.556945,0.000119,2]
[361137640,1747301346602,-2470.556945,0.000119,2]
[361137641,1747301346633,-1322.0,0.000119,2]
[361137642,1747301346664,-1123.13975246,0.000119,2]
[361137643,1747301346694,-164.17907876,0.000119,2]
[361137644,1747301346724,-13900.0,0.000119,4]
[361137645,1747301346755,-749.65,0.00011911,2]
[361137646,1747301346783,-400.0,0.00011911,2]
[361137647,1747301346812,-400.0,0.00011911,2]
[361137648,1747301346841,-1116.72,0.00011911,2]
[361137649,1747301346870,-400.0,0.00011911,2]
[361137650,1747301346899,-400.0,0.00011911,2]
[361137651,1747301346930,-400.0,0.00011911,2]
[361137652,1747301346960,-1083.67,0.00011911,2]
[361137653,1747301346988,-400.0,0.00011911,2]
[361137654,1747301347018,-489.61,0.00011911,2]
[361137655,1747301347046,-400.0,0.00011911,2]
[361137656,1747301347075,-505.6,0.00011911,2]
[361137657,1747301347104,-400.0,0.00011911,2]
[361137658,1747301347134,-400.0,0.00011911,2]
[361137659,1747301347162,-400.0,0.00011911,2]
[361137660,1747301347191,-640.0,0.00011911,2]
[361137661,1747301347220,-400.0,0.00011911,2]
[361137662,1747301347427,-463.86,0.00011911,2]
[361137663,1747301347460,-977.11,0.00011911,2]
[361137664,1747301347492,-400.0,0.00011911,2]
[361137665,1747301347524,-400.0,0.00011911,2]
[361137666,1747301347555,-400.0,0.00011911,2]
[361137667,1747301347585,-452.84,0.00011911,2]
[361137668,1747301347614,-463.42,0.00011911,2]
[361137669,1747301347644,-514.97,0.00011911,2]
[361137670,1747301347674,-400.0,0.00011911,2]
[361137671,1747301347703,-690.08,0.00011911,2]
[361137672,1747301347732,-838.76,0.00011911,2]
[361137673,1747301347765,-847.31,0.00011911,2]
[361137674,1747301347795,-400.0,0.00011911,2]
[361137675,1747301347824,-548.2,0.00011911,2]
[361137676,1747301347852,-1057.29,0.00011911,2]
[361137677,1747301347880,-569.98,0.00011911,2]
[361137678,1747301347909,-418.14430374,0.00011911,2]
[361137679,1747301347938,-400.0,0.00011911,2]
[361137680,1747301347967,-400.0,0.00011911,2]
[361137681,1747301347996,-400.0,0.00011911,2]
[361137682,1747301348024,-400.0,0.00011911,2]
[361137683,1747301348053,-400.0,0.00011911,2]
[361137684,1747301348080,-400.0,0.00011911,2]
[361137685,1747301348109,-491.72,0.00011911,2]
[361137686,1747301348136,-400.0,0.00011911,2]
[361137687,1747301348166,-677.91,0.00011911,2]
[361137688,1747301348195,-400.0,0.00011911,2]
[361137689,1747301348221,-424.19190844,0.00011911,2]
[361137690,1747301348250,-400.0,0.00011911,2]
[361137691,1747301348278,-435.28,0.00011911,2]
[361137692,1747301348306,-168.76592131,0.00011911,2]
[361137693,1747301348334,-400.0,0.00011911,2]
[361137694,1747301348362,-400.0,0.00011911,2]
[361137695,1747301348392,-639.69,0.00011911,2]
[361137696,1747301348423,-400.0,0.00011911,2]
[361137697,1747301348452,-400.0,0.00011911,2]
[361137698,1747301348481,-400.0,0.00011911,2]
[361137699,1747301348510,-400.0,0.00011911,2]
[361137700,1747301348539,-422.76,0.00011911,2]
[361137701,1747301348569,-400.0,0.00011911,2]
[361137702,1747301348598,-400.0,0.00011911,2]
[361137703,1747301348627,-623.11,0.00011911,2]
[361137704,1747301348657,-400.0,0.00011911,2]
[361137705,1747301348687,-400.0,0.00011911,2]
[361137706,1747301348715,-400.0,0.00011911,2]
[361137707,1747301348751,-400.0,0.00011911,2]
[361137708,1747301348780,-400.0,0.00011911,2]